bitfinex/quotes_SOLUSD_20240811
["timestamp","ask_amount","ask_price","bid_price","bid_amount"]
[1723383149856,50.14386,150.8,150.72,44.846]
[1723383150054,45.37647,150.8,150.72,44.846]
[1723383150369,0.25098,150.8,150.72,44.846]
[1723383150668,0.12549,150.8,150.72,44.846]
[1723383151356,6.93435893,150.84,150.72,44.846]
[1723383151565,50.14316,150.83,150.73,20.0]
[1723383151858,5.14316,150.83,150.73,21.32650735]
[1723383152038,4.6414,150.82,150.73,20.0]
[1723383152433,4.76709,150.81,150.73,20.0]
[1723383152653,4.6416,150.81,150.73,20.0]
[1723383153036,4.6413,150.82,150.73,20.0]
[1723383153359,0.50196,150.83,150.73,20.0]
[1723383153663,0.12549,150.83,150.74,1.32652449]
[1723383153865,4.76619,150.84,150.74,1.32652449]
[1723383154157,4.6409,150.83,150.74,1.32652449]
[1723383154361,4.6409,150.83,150.73,20.0]
[1723383155440,0.12549,150.84,150.74,1.32639216]
[1723383155642,6.93306283,150.86,150.75,0.12549]
[1723383155840,4.6398,150.87,150.75,20.50196]
[1723383156168,6.92978772,150.88,150.75,20.12549]
[1723383156348,1.65789923,150.87,150.75,20.0]
[1723383156867,1.65789923,150.87,150.73,20.12549]
[1723383157050,4.6407,150.84,150.73,20.12549]
[1723383157251,0.25098,150.83,150.73,20.12549]
[1723383157847,0.25098,150.86,150.74,45.25098]
[1723383158049,0.25098,150.86,150.74,46.5772487]
[1723383158050,0.25098,150.85,150.74,46.5772487]
[1723383158255,0.25098,150.84,150.75,20.0]
[1723383158446,0.12549,150.84,150.75,20.0]
[1723383158641,49.89138,150.85,150.75,20.0]
[1723383158860,49.89138,150.85,150.75,101.0]
[1723383159063,4.76549,150.86,150.76,21.32629924]
[1723383159266,0.12549,150.87,150.78,31.5838]
[1723383159571,4.6401,150.86,150.78,31.5838]
[1723383160263,0.12549,150.87,150.78,31.5838]
[1723383160443,6.42293408,150.87,150.78,31.5838]
[1723383160650,0.12549,150.86,150.78,31.5838]
[1723383161439,4.6405,150.85,150.78,31.5838]
[1723383161651,45.37647,150.84,150.78,31.5838]
[1723383161866,45.25098,150.84,150.78,31.5838]
[1723383162068,0.12549,150.85,150.78,31.5838]
[1723383162243,1.65781491,150.86,150.78,31.5838]
[1723383162451,6.92978772,150.88,150.78,31.5838]
[1723383162664,4.6402,150.86,150.78,31.5838]
[1723383163175,4.6404,150.85,150.78,31.5838]
[1723383163345,1.65777213,150.85,150.78,31.5838]
[1723383163556,4.6398,150.87,150.78,31.5838]
[1723383163869,11.56928772,150.88,150.78,31.5838]
[1723383164472,1.65744541,150.87,150.78,31.5838]
[1723383165762,46.65744541,150.87,150.78,31.5838]
[1723383165963,4.6401,150.86,150.78,31.5838]
[1723383166168,1.65763367,150.85,150.78,31.5838]
[1723383166483,49.6398,150.87,150.78,31.5838]
[1723383167068,45.0,150.87,150.78,31.5838]
[1723383167266,0.12549,150.87,150.79,20.0]
[1723383167462,0.37647,150.87,150.79,20.0]
[1723383167777,4.76469,150.89,150.79,21.32604163]
[1723383167966,0.37647,150.88,150.79,20.0]
[1723383168167,0.12549,150.87,150.79,20.0]
[1723383168369,4.76539,150.87,150.79,20.0]
[1723383168683,0.12549,150.87,150.79,20.0]
[1723383168849,45.12549,150.87,150.79,20.0]
[1723383169765,5.01597,150.88,150.79,20.0]
[1723383169961,0.25098,150.88,150.8,1.32592923]
[1723383170162,6.42214312,150.89,150.79,20.0]
[1723383170372,6.29665312,150.89,150.79,20.0]
[1723383170689,4.6393,150.89,150.79,20.0]
[1723383171175,4.6392,150.89,150.79,20.0]
[1723383172982,5.01537,150.9,150.79,20.0]
[1723383173272,4.6384,150.92,150.8,46.8277071]
[1723383173477,45.0,150.91,150.82,13.1508]
[1723383174153,4.6384,150.92,150.82,13.1508]
[1723383174364,4.6384,150.92,150.83,30.424]
[1723383174869,0.12549,150.92,150.83,30.424]
[1723383175078,0.25098,150.92,150.83,30.424]
[1723383175876,4.6386,150.91,150.83,30.424]
[1723383176377,51.54637038,150.92,150.83,30.424]
[1723383176585,4.6385,150.91,150.83,30.424]
[1723383177683,4.88978,150.9,150.83,30.424]
[1723383178183,0.12549,150.89,150.83,30.424]
[1723383179077,1.7828199,150.89,150.83,30.424]
[1723383179284,4.6398,150.87,150.82,13.1508]
[1723383179458,0.25098,150.88,150.82,13.1508]
[1723383179660,0.25098,150.89,150.82,13.1508]
[1723383180180,0.12549,150.89,150.82,13.1508]
[1723383180374,45.12549,150.9,150.82,13.1508]
[1723383180690,4.76479,150.89,150.82,13.1508]
[1723383180980,0.12549,150.88,150.82,13.1508]
[1723383181563,4.76519,150.87,150.82,13.1508]
[1723383181892,0.12549,150.86,150.79,30.424]
[1723383182058,4.89108,150.86,150.79,30.424]
[1723383182256,0.12549,150.86,150.79,30.424]
[1723383182577,0.25098,150.86,150.79,30.424]
[1723383183086,0.12549,150.87,150.8,1.32613514]
[1723383183261,0.12549,150.87,150.79,30.424]
[1723383183460,0.12549,150.85,150.79,30.424]
[1723383183662,0.25098,150.85,150.79,30.424]
[1723383184285,45.25098,150.88,150.79,30.424]
[1723383184286,4.6398,150.87,150.79,30.424]
[1723383184488,45.50196,150.86,150.79,30.424]
[1723383184758,49.76489,150.88,150.79,31.75015004]
[1723383184964,0.25098,150.87,150.8,1.32606014]
[1723383185170,0.37647,150.87,150.8,1.32606014]
[1723383185695,0.37647,150.87,150.79,30.424]
[1723383185859,4.6407,150.84,150.79,30.424]
[1723383186879,4.89138,150.85,150.79,30.424]
[1723383187078,0.25098,150.86,150.79,30.424]
[1723383187272,49.89108,150.86,150.79,30.424]
[1723383187592,0.12549,150.85,150.79,30.424]
[1723383188090,45.25098,150.86,150.79,31.7501517]
[1723383188292,4.76529,150.87,150.79,31.7501084]
[1723383188293,4.6398,150.87,150.79,31.7501084]
[1723383188494,4.6404,150.85,150.79,30.424]
[1723383188784,4.6406,150.84,150.79,30.424]
[1723383189172,17.28939386,150.88,150.8,1.3262934]
[1723383189381,418.16183083,150.93,150.8,1.3262934]
[1723383189583,392.195,150.93,150.8,1.3262934]
[1723383189771,6.90035265,150.9,150.8,21.3262934]
[1723383189966,4.6387,150.91,150.8,21.3262934]
[1723383190402,4.6388,150.9,150.8,21.3262934]
[1723383190597,21.92388911,150.93,150.82,12.2015]
[1723383190895,12.04409484,150.93,150.82,12.2015]
[1723383191072,1.65729462,150.92,150.82,12.2015]
[1723383191266,10.38703414,150.93,150.82,12.2015]
[1723383191470,12.04413222,150.93,150.82,12.2015]
[1723383191670,11.596,150.92,150.82,12.2015]
[1723383191891,4.6395,150.88,150.82,12.2015]
[1723383192087,4.6397,150.87,150.82,12.2015]
[1723383192293,4.6394,150.88,150.82,12.2015]
[1723383192674,0.12549,150.87,150.82,12.2015]
[1723383192889,0.25098,150.88,150.82,12.2015]
[1723383193072,0.25098,150.87,150.82,12.2015]
[1723383193705,4.64,150.86,150.82,12.2015]
[1723383194774,0.12549,150.87,150.82,12.2015]
[1723383195084,4.64,150.86,150.82,12.2015]
[1723383195466,0.12549,150.87,150.82,12.2015]
[1723383195668,20.0,150.91,150.82,12.2015]
[1723383195874,4.639,150.9,150.82,12.2015]
[1723383196076,20.0,150.92,150.82,12.2015]
[1723383196274,4.6398,150.87,150.82,12.2015]
[1723383196690,4.6395,150.88,150.82,12.2015]
[1723383197103,4.6398,150.87,150.82,12.2015]
[1723383197287,4.6392,150.89,150.82,12.2015]
[1723383197990,4.6388,150.9,150.82,12.2015]
[1723383198592,4.6394,150.88,150.82,12.2015]
[1723383199586,4.6392,150.89,150.82,12.2015]
[1723383200505,4.76429,150.9,150.82,12.2015]
[1723383201287,10.38703414,150.93,150.84,31.731]
[1723383201602,38.67639067,150.96,150.84,31.731]
[1723383201801,4.6382,150.92,150.84,31.731]
[1723383202104,4.6385,150.91,150.84,31.731]
[1723383203497,1.78249616,150.93,150.84,31.731]
[1723383203701,4.6393,150.89,150.84,31.731]
[1723383203907,4.6388,150.9,150.84,31.731]
[1723383204209,4.76399,150.91,150.84,31.731]
[1723383204410,4.6395,150.88,150.84,31.731]
[1723383204810,4.6392,150.89,150.84,31.731]
[1723383205510,4.76439,150.9,150.84,31.731]
[1723383205707,0.12549,150.89,150.84,31.731]
[1723383207814,4.76459,150.89,150.84,31.731]
[1723383208002,0.12549,150.89,150.84,31.731]
[1723383208314,0.25098,150.9,150.84,31.731]
[1723383210217,4.88978,150.9,150.84,31.731]
[1723383210511,6.54700373,150.9,150.84,31.731]
[1723383210887,4.88978,150.9,150.84,31.731]
[1723383212587,0.25098,150.9,150.84,31.731]
[1723383212890,4.6386,150.91,150.84,31.731]
[1723383213094,4.6382,150.92,150.84,31.731]
[1723383213405,4.6382,150.92,150.85,20.0]
[1723383213993,1.65714896,150.91,150.84,31.731]
[1723383214200,4.6389,150.9,150.84,31.731]
[1723383215224,4.76399,150.91,150.84,31.731]
[1723383215393,0.25098,150.9,150.84,31.731]
[1723383216025,4.6382,150.92,150.84,31.731]
[1723383216213,4.6385,150.91,150.84,31.731]
[1723383216700,4.6383,150.92,150.84,31.731]
[1723383217306,4.76399,150.91,150.84,31.731]
[1723383218025,0.12549,150.91,150.84,31.731]
[1723383220924,8.28108401,150.93,150.84,31.731]
[1723383221223,45.12549,150.92,150.85,21.32559736]
[1723383223023,45.12549,150.92,150.85,20.0]
[1723383223517,6.54648242,150.91,150.84,31.731]
[1723383223707,0.12549,150.91,150.84,31.731]
[1723383224701,45.12549,150.92,150.85,1.32560036]
[1723383224901,45.12549,150.92,150.84,31.731]
[1723383225426,0.12549,150.91,150.84,31.731]
[1723383225619,4.76399,150.91,150.84,31.731]
[1723383225929,0.12549,150.91,150.84,31.731]
[1723383226513,4.76399,150.91,150.84,31.731]
[1723383227329,0.12549,150.91,150.84,31.731]
[1723383230032,4.76399,150.91,150.84,31.731]
[1723383230428,0.12549,150.91,150.84,31.731]
[1723383230611,45.12549,150.92,150.84,31.731]
[1723383231424,45.12549,150.92,150.85,1.32559062]
[1723383231622,0.25098,150.93,150.85,1.32558478]
[1723383231934,4.6383,150.92,150.84,31.731]
[1723383232137,4.88888,150.93,150.84,31.731]
[1723383232311,4.6382,150.92,150.84,31.731]
[1723383232849,4.88888,150.93,150.84,31.731]
[1723383233617,4.88928,150.92,150.84,31.731]
[1723383234013,6.29551992,150.91,150.84,31.731]
[1723383234236,4.6385,150.91,150.84,31.731]
[1723383234609,6.29560092,150.91,150.84,31.731]
[1723383235011,4.88918,150.92,150.84,31.731]
[1723383237410,0.25098,150.92,150.84,31.731]
[1723383237738,45.25098,150.92,150.84,31.731]
[1723383238815,45.25098,150.92,150.85,1.32565226]
[1723383239227,45.25098,150.92,150.85,21.32565226]
[1723383239812,0.25098,150.92,150.85,21.32565226]
[1723383241828,3.42691129,150.93,150.85,1.32565226]
[1723383242036,4.24294479,150.94,150.86,12.8732]
[1723383243545,49.6381,150.93,150.86,12.8732]
[1723383243725,9.13152479,150.94,150.86,12.8732]
[1723383243923,9.13152479,150.94,150.87,1.32543647]
[1723383244237,9.13152479,150.94,150.86,12.8732]
[1723383244448,9.00603479,150.94,150.86,12.8732]
[1723383244625,0.8160335,150.94,150.86,12.8732]
[1723383244825,0.8160335,150.94,150.87,20.0]
[1723383246712,5.4538335,150.94,150.87,20.0]
[1723383246939,1.65667009,150.93,150.87,20.0]
[1723383247244,4.638,150.93,150.86,12.8732]
[1723383247740,5.5791235,150.94,150.86,12.8732]
[1723383247946,4.6379,150.93,150.86,12.8732]
[1723383248445,51.5461176,150.92,150.86,12.8732]
[1723383248947,45.12549,150.92,150.86,12.8732]
[1723383249138,0.12549,150.93,150.86,12.8732]
[1723383249337,4.6383,150.92,150.86,12.8732]
[1723383249650,1.65706542,150.91,150.86,12.8732]
[1723383250217,53.56687129,150.93,150.86,12.8732]
[1723383251752,1.65699172,150.92,150.86,12.8732]
[1723383252048,6.29529172,150.92,150.86,12.8732]
[1723383252342,49.6387,150.91,150.86,12.8732]
[1723383252653,1.65709665,150.9,150.86,12.8732]
[1723383252959,1.65709626,150.89,150.86,12.8732]
[1723383253244,0.12549,150.88,150.84,31.731]
[1723383253443,45.25098,150.88,150.84,31.731]
[1723383254237,49.89048,150.88,150.84,31.731]
[1723383254923,45.25098,150.88,150.84,31.731]
[1723383255955,3.42691129,150.89,150.84,31.731]
[1723383256242,8.06581129,150.9,150.84,31.731]
[1723383256457,3.42691129,150.9,150.84,31.731]
[1723383256630,3.42691129,150.92,150.84,31.731]
[1723383256960,8.06511129,150.92,150.84,31.731]
[1723383257126,45.0,150.91,150.84,31.731]
[1723383258330,49.6386,150.91,150.84,31.731]
[1723383258644,45.0,150.91,150.84,31.731]
[1723383258857,4.6391,150.89,150.84,31.731]
[1723383259152,6.29622806,150.89,150.84,31.731]
[1723383259352,4.6391,150.89,150.84,31.731]
[1723383260419,4.76499,150.88,150.84,31.731]
[1723383260619,3.67789129,150.89,150.82,13.062]
[1723383260822,4.6401,150.86,150.82,13.062]
[1723383261043,4.76529,150.87,150.82,13.062]
[1723383261243,45.25098,150.86,150.82,13.062]
[1723383262562,4.6404,150.85,150.82,13.062]
[1723383262928,4.6404,150.85,150.8,30.2741]
[1723383263427,4.6407,150.84,150.8,30.2741]
[1723383263629,0.25098,150.86,150.8,30.2741]
[1723383263630,0.12549,150.85,150.8,30.2741]
[1723383263848,1.90880957,150.85,150.78,13.062]
[1723383264154,42.3972,150.82,150.73,13.062]
[1723383264351,12.9574,150.8,150.66,30.2741]
[1723383264523,3.55240129,150.76,150.66,30.2741]
[1723383264727,0.12549,150.74,150.69,4.6452]
[1723383264927,49.76929,150.74,150.69,4.6452]
[1723383265163,4.6428,150.77,150.72,4.6442]
[1723383265329,0.12549,150.79,150.73,4.6438]
[1723383265528,0.12549,150.78,150.73,4.6438]
[1723383265826,0.12549,150.77,150.72,4.6443]
[1723383266027,1.90960307,150.77,150.72,4.6443]
[1723383266243,6.55250307,150.77,150.67,0.12549]
[1723383266443,6.55250307,150.77,150.67,0.25098]
[1723383266836,6.55250307,150.77,150.67,20.25098]
[1723383267458,6.55250307,150.77,150.72,4.6442]
[1723383268165,6.55250307,150.77,150.67,20.25098]
[1723383269152,6.55250307,150.77,150.72,4.6443]
[1723383269865,0.12549,150.73,150.66,30.2741]
[1723383270160,4.6446,150.71,150.66,34.9202]
[1723383270544,0.12549,150.71,150.67,4.6459]
[1723383270751,51.8059861,150.71,150.66,4.6462]
[1723383272059,0.12549,150.69,150.6,13.1354]
[1723383272280,47.16157954,150.69,150.6,13.1354]
[1723383272464,51.80707954,150.69,150.63,4.647]
[1723383272768,51.80707954,150.69,150.6,13.1354]
[1723383272769,50.14746,150.69,150.6,13.1354]
[1723383272971,45.25098,150.69,150.6,13.1354]
[1723383273139,0.12549,150.69,150.66,4.6462]
[1723383273451,49.89598,150.7,150.65,4.6464]
[1723383274669,45.25098,150.7,150.66,4.6462]
[1723383275340,1.65940615,150.7,150.67,4.6456]
[1723383275864,4.6443,150.72,150.68,4.6455]
[1723383276034,26.89826362,150.78,150.62,0.12549]
[1723383276238,6.89826362,150.78,150.64,0.12549]
[1723383276467,6.89826362,150.78,150.72,4.6443]
[1723383276769,4.6431,150.76,150.64,20.12549]
[1723383277064,4.6434,150.75,150.64,20.12549]
[1723383277886,4.6431,150.76,150.64,20.12549]
[1723383278271,49.76889,150.75,150.64,20.12549]
[1723383278449,0.12549,150.74,150.64,20.12549]
[1723383280167,50.76355701,150.79,150.67,0.12549]
[1723383280475,55.40575701,150.79,150.67,1.57789433]
[1723383280637,37.63505701,150.79,150.67,1.57789433]
[1723383280843,4.6419,150.8,150.68,0.12549]
[1723383281070,4.6419,150.8,150.69,32.3184]
[1723383281363,4.6419,150.8,150.7,21.32674625]
[1723383281861,4.6419,150.8,150.71,1.32675237]
[1723383282070,4.6422,150.79,150.7,20.0]
[1723383282242,4.6421,150.8,150.7,20.0]
[1723383282441,4.6422,150.79,150.7,20.0]
[1723383282660,1.65829625,150.78,150.7,20.0]
[1723383282889,1.65829625,150.78,150.69,32.3184]
[1723383283043,4.6435,150.75,150.69,32.3184]
[1723383283251,1.65885713,150.74,150.69,32.3184]
[1723383284371,1.65880577,150.75,150.69,32.3184]
[1723383284874,31.6044,150.81,150.69,32.3184]
[1723383284875,4.6428,150.78,150.69,32.3184]
[1723383285045,1.78410485,150.77,150.69,32.3184]
[1723383285240,6.42700485,150.77,150.69,32.3184]
[1723383285570,1.78410485,150.77,150.69,32.3184]
[1723383286373,0.25098,150.76,150.69,32.3184]
[1723383286950,4.89428,150.76,150.69,32.3184]
[1723383287154,1.65879636,150.75,150.69,32.3184]
[1723383289555,4.6421,150.8,150.69,32.3184]
[1723383289760,0.25098,150.79,150.69,32.3184]
[1723383290070,4.6421,150.8,150.69,32.3184]
[1723383290263,1.65845129,150.79,150.69,32.3184]
[1723383290468,21.65845129,150.79,150.7,13.2126]
[1723383290679,24.6416,150.81,150.71,20.0]
[1723383291385,0.12549,150.8,150.71,20.0]
[1723383291589,0.25098,150.8,150.71,20.0]
[1723383292266,45.25098,150.8,150.71,20.0]
[1723383292593,0.12549,150.79,150.71,20.0]
[1723383292969,6.30022549,150.8,150.71,20.0]
[1723383293289,24.6416,150.81,150.71,20.0]
[1723383293461,26.29980189,150.81,150.71,20.0]
[1723383295891,4.76749,150.8,150.71,20.0]
[1723383296075,1.65833436,150.79,150.71,20.0]
[1723383296275,4.76749,150.8,150.71,20.0]
[1723383296487,6.42584104,150.8,150.71,20.0]
[1723383296677,6.30055655,150.79,150.71,20.0]
[1723383297791,45.37647,150.78,150.71,20.0]
[1723383297971,50.01897,150.78,150.71,20.0]
[1723383298594,1.6585881,150.77,150.7,13.2126]
[1723383298782,4.6435,150.75,150.7,13.2126]
[1723383298974,1.65883714,150.74,150.7,13.2126]
[1723383299173,1.6588668,150.73,150.69,32.3184]
[1723383299398,4.6437,150.74,150.65,43.6414]
[1723383299699,1.78451439,150.73,150.65,43.6414]
[1723383299878,46.78451439,150.73,150.65,43.6414]
[1723383300296,0.12549,150.72,150.65,43.6414]
[1723383300486,0.37647,150.72,150.65,43.6414]
[1723383300795,0.12549,150.71,150.65,43.6414]
[1723383300981,0.25098,150.71,150.65,43.6414]
[1723383302517,1.65918554,150.72,150.65,43.6414]
[1723383302802,0.37647,150.71,150.65,43.6414]
[1723383302977,0.25098,150.71,150.65,43.6414]
[1723383303172,30.2557,150.81,150.66,1.45293927]
[1723383303381,1.65877422,150.79,150.65,43.6414]
[1723383303678,1.65877422,150.79,150.64,0.25098]
[1723383303679,30.2557,150.81,150.68,43.6414]
[1723383303886,43.0786,150.85,150.69,66.70313219]
[1723383304091,4.6413,150.82,150.7,0.12549]
[1723383304402,4.6413,150.82,150.71,43.6414]
[1723383305287,4.6416,150.81,150.71,43.6414]
[1723383305678,0.12549,150.8,150.71,43.6414]
[1723383305997,47.16025159,150.8,150.71,43.6414]
[1723383306498,45.50196,150.8,150.71,43.6414]
[1723383306702,0.50196,150.8,150.71,43.6414]
[1723383306878,2.16033065,150.8,150.71,43.6414]
[1723383307799,6.80223065,150.8,150.71,43.6414]
[1723383307974,0.12549,150.78,150.71,43.6414]
[1723383308186,2.16054578,150.78,150.71,43.6414]
[1723383308374,47.16054578,150.78,150.71,43.6414]
[1723383308806,45.50196,150.78,150.71,43.6414]
[1723383309494,45.50196,150.78,150.71,30.4288]
[1723383309794,0.12549,150.75,150.67,42.9414]
[1723383310097,47.16093774,150.75,150.67,42.9414]
[1723383310298,45.50196,150.75,150.67,42.9414]
[1723383310599,45.0,150.76,150.68,1.32717452]
[1723383310783,0.50196,150.75,150.67,42.9414]
[1723383310983,0.25098,150.75,150.67,42.9414]
[1723383311194,45.0,150.76,150.68,20.0]
[1723383311382,45.12549,150.77,150.68,21.32699914]
[1723383311580,23.40065404,150.83,150.68,20.0]
[1723383311581,1.658583,150.82,150.68,20.0]
[1723383311803,0.12549,150.81,150.69,30.2168]
[1723383311978,1.65848367,150.81,150.7,20.0]
[1723383312785,4.6425,150.78,150.69,30.2168]
[1723383312986,0.25098,150.77,150.69,30.2168]
[1723383313192,0.25098,150.76,150.7,20.0]
[1723383313487,0.12549,150.76,150.7,20.0]
[1723383313876,45.12549,150.77,150.7,20.0]
[1723383314082,4.76709,150.81,150.7,20.0]
[1723383314311,0.12549,150.79,150.7,20.0]
[1723383315008,6.4261466,150.79,150.7,20.0]
[1723383315208,4.76799,150.78,150.7,20.0]
[1723383315501,0.12549,150.77,150.7,20.0]
[1723383316894,0.12549,150.78,150.71,12.7246]
[1723383317079,0.25098,150.78,150.71,12.7246]
[1723383318781,11.96965863,150.82,150.71,12.7246]
[1723383319121,49.87990808,150.85,150.73,12.7246]
[1723383319122,3.40065404,150.85,150.73,12.7246]
[1723383319291,6.90690819,150.83,150.73,12.7246]
[1723383319488,6.29971568,150.82,150.73,12.7246]
[1723383319800,380.6,150.84,150.73,12.7246]
[1723383320706,380.6,150.84,150.74,20.0]
[1723383321086,385.2406,150.84,150.74,20.0]
[1723383321709,0.25098,150.83,150.74,20.0]
[1723383322087,380.6,150.84,150.75,30.2168]
[1723383322409,380.6,150.84,150.76,20.0]
[1723383322793,1.65790436,150.83,150.76,20.0]
[1723383322986,380.6,150.84,150.76,20.0]
[1723383324106,47.15973767,150.83,150.75,30.2168]
[1723383324302,6.29953233,150.82,150.75,30.2168]
[1723383324508,45.50196,150.81,150.75,30.2168]
[1723383324820,0.12549,150.81,150.75,30.2168]
[1723383324987,0.25098,150.82,150.75,30.2168]
[1723383325310,0.25098,150.81,150.75,30.2168]
[1723383325881,0.25098,150.8,150.75,30.2168]
[1723383326085,0.25098,150.79,150.75,30.2168]
[1723383326287,0.12549,150.79,150.75,30.2168]
[1723383326513,0.12549,150.82,150.75,30.2168]
[1723383326726,50.14326,150.82,150.75,30.2168]
[1723383327635,0.12549,150.78,150.75,30.2168]
[1723383327940,51.80291468,150.78,150.73,12.7246]
[1723383328234,45.50196,150.78,150.73,12.7246]
[1723383328531,0.50196,150.78,150.73,12.7246]
[1723383328832,2.16049713,150.78,150.73,12.7246]
[1723383329223,6.80299713,150.78,150.73,12.7246]
[1723383329408,45.0,150.77,150.73,12.7246]
[1723383329608,1.65861971,150.76,150.73,12.7246]
[1723383329831,45.0,150.77,150.73,12.7246]
[1723383330130,0.25098,150.76,150.73,12.7246]
[1723383330469,45.0,150.77,150.73,12.7246]
[1723383332027,0.25098,150.78,150.73,12.7246]
[1723383332215,3.40065404,150.83,150.73,14.05125705]
[1723383332421,395.54323164,150.85,150.74,1.32649125]
[1723383332632,395.54323164,150.85,150.73,12.7246]
[1723383332633,11.5425776,150.85,150.73,12.7246]
[1723383332928,4.6407,150.84,150.73,12.7246]
[1723383333527,4.6409,150.83,150.73,12.7246]
[1723383333923,45.12549,150.82,150.73,12.7246]
[1723383334124,45.12549,150.82,150.74,32.1396]
[1723383334337,45.0,150.83,150.74,53.46603255]
[1723383334528,11.54027027,150.87,150.75,0.12549]
[1723383334731,4.6397,150.87,150.76,45.4405]
[1723383334944,4.6401,150.86,150.77,20.0]
[1723383336053,4.6398,150.87,150.77,20.0]
[1723383336223,0.25098,150.86,150.77,21.32616785]
[1723383336733,10.39284093,150.89,150.79,45.4405]
[1723383337048,10.39284093,150.89,150.8,20.0]
[1723383337756,0.12549,150.86,150.8,20.0]
[1723383337975,0.12549,150.85,150.79,45.4405]
[1723383338156,4.6412,150.83,150.79,45.4405]
[1723383338321,46.90897107,150.82,150.79,45.4405]
[1723383338526,45.25098,150.82,150.79,45.4405]
[1723383338829,45.0,150.83,150.79,45.4405]
[1723383339030,45.0,150.84,150.79,45.4405]
[1723383339227,2.15989562,150.83,150.79,45.4405]
[1723383339760,0.50196,150.83,150.79,45.4405]
[1723383340128,0.37647,150.83,150.79,45.4405]
[1723383340324,0.25098,150.83,150.79,45.4405]
[1723383341229,0.25098,150.82,150.75,13.3009]
[1723383341458,0.25098,150.81,150.75,45.4405]
[1723383341657,45.25098,150.81,150.75,45.4405]
[1723383341859,0.25098,150.81,150.75,45.4405]
[1723383344571,0.12549,150.83,150.75,45.4405]
[1723383344770,45.50196,150.83,150.75,45.4405]
[1723383345656,1.658029,150.82,150.75,45.4405]
[1723383346039,45.50196,150.83,150.75,45.4405]
[1723383348469,45.25098,150.83,150.75,45.4405]
[1723383348643,0.25098,150.83,150.75,45.4405]
[1723383349362,45.0,150.84,150.75,45.4405]
[1723383349570,4.6397,150.88,150.77,0.12549]
[1723383349866,4.6392,150.89,150.78,43.0878]
[1723383350173,4.6394,150.88,150.79,1.32596536]
[1723383350470,4.6394,150.88,150.79,21.32596536]
[1723383351467,4.6394,150.88,150.79,20.0]
[1723383352044,0.12549,150.87,150.79,20.0]
[1723383352443,0.25098,150.87,150.79,20.0]
[1723383354369,0.12549,150.89,150.79,20.0]
[1723383354577,0.37647,150.89,150.79,20.0]
[1723383354866,0.12549,150.88,150.79,20.0]
[1723383355069,4.6398,150.87,150.79,20.0]
[1723383355243,1.65762288,150.86,150.79,20.0]
[1723383355655,6.29772288,150.86,150.79,20.0]
[1723383356061,4.76589,150.85,150.79,20.0]
[1723383356274,4.76589,150.85,150.78,43.0878]
[1723383356275,51.67499938,150.84,150.78,43.0878]
[1723383356570,45.37647,150.84,150.78,43.0878]
[1723383356776,4.6399,150.87,150.78,43.0878]
[1723383356942,0.25098,150.86,150.78,43.0878]
[1723383357140,4.76589,150.85,150.78,43.0878]
[1723383357343,45.37647,150.84,150.78,43.0878]
[1723383358168,0.12549,150.83,150.78,43.0878]
[1723383360678,3.40065404,150.89,150.78,43.0878]
[1723383360848,0.12549,150.87,150.78,43.0878]
[1723383361058,45.12549,150.87,150.78,43.0878]
[1723383361353,0.25098,150.86,150.78,43.0878]
[1723383361662,0.25098,150.86,150.79,20.0]